Cogmind - Beta 13 @@@ ROGUE MODE // 2024.04.15 @ 15:49:06 Player: UberDoot Result: Destroyed by Y-54 Guardian with Gatling Laser Performance ------------- Evolutions (0) 0 Regions Visited (3) 600 Robots Destroyed (36) 180 Value Destroyed (1063) 1063 Prototype IDs (0) 0 Alien Tech Used (0) 0 Bonus (23) 23 TOTAL SCORE: 1866 Bonus ------- High Alert Combat Kills 23 Cogmind --------- Core Integrity 0/250 Matter 249/300 Energy 200/200 System Corruption 5% Temperature Cool (10) Movement Rolling (95) Location -7/Recycling Parts ------- > --- POWER (1) -------- Subdweller Power Source > --- PROPULSION (2) --- Wheel Subdweller Monowheel > --- UTILITY (2) ------ Scrap Engine > --- WEAPON (2) ------- Heavy Battle Rifle Battle Cannon > --- INVENTORY (5) ---- Nuclear Core Large Storage Unit Seismic Detector Heavy Missile Launcher Axe Peak State ------------ > --- POWER ------------ Subdweller Power Source > --- PROPULSION ------- Wheel Subdweller Monowheel > --- UTILITY ---------- Scrap Engine > --- WEAPON ----------- Heavy Battle Rifle Axe > --- INVENTORY -------- Subdweller Power Source Large Storage Unit Seismic Detector Battle Cannon Heavy Missile Launcher [Rating: 29] Favorites ----------- Power Subdweller Power Source Engine Subdweller Power Source Power Core Neutrino Core Propulsion Light Treads Treads Light Treads Leg Aluminum Leg Wheel Subdweller Monowheel Utility Large Storage Unit Device Seismic Detector Storage Large Storage Unit Processor Targeting Computer Protection Scrap Shield Weapon Subdweller Beam Cannon Energy Gun Subdweller Laser Energy Cannon Subdweller Beam Cannon Ballistic Gun Assault Rifle Ballistic Cannon Battle Cannon Launcher Grenade Launcher Special Weapon Flamer Slashing Weapon Axe Build | -11 -10 -10 -7 ------- Run | Yrd Mat Sub Rec Slots Evolved . | . . . . Power . | . . . . Propulsion . | . . . . Utility . | . . . . Weapon . | . . . . Parts Attached 49 | 7 6 28 8 Power 9 | 1 1 5 2 Engine 7 | 1 1 4 1 Core 2 | . . 1 1 Reactor . | . . . . Propulsion 10 | 2 2 4 2 Treads 3 | . 2 1 . Leg 2 | 2 . . . Wheel 5 | . . 3 2 Hover . | . . . . Flight . | . . . . Utility 11 | 2 3 5 1 Device 2 | 1 . . 1 Storage 4 | 1 2 1 . Processor 1 | . . 1 . Hackware . | . . . . Protection 4 | . 1 3 . Artifact . | . . . . Weapon 19 | 2 . 14 3 Energy Gun 4 | . . 4 . Energy Cannon 4 | . . 4 . Ballistic Gun 5 | 2 . 2 1 Ballistic Cannon 2 | . . 1 1 Launcher 1 | . . 1 . Special Weapon 2 | . . 2 . Impact Weapon . | . . . . Slashing Weapon 1 | . . . 1 Piercing Weapon . | . . . . Special Melee Weapon . | . . . . Unidentified Prototypes . | . . . . Parts Lost 5 | . 1 4 . Power 1 | . . 1 . Propulsion . | . . . . Utility 2 | . 1 1 . Weapon 2 | . . 2 . Highest Loss Streak 1 | . 1 1 . To Critical Strikes . | . . . . Average Slot Usage (%) 92 | . 100 91 85 Engine 13 | . 14 13 13 Treads 18 | . 17 21 1 Leg 2 | . 10 . . Wheel 6 | . . 6 26 Device 3 | . 11 . 13 Storage 7 | . 14 6 . Protection 10 | . 2 14 . Energy Gun 6 | . . 8 . Energy Cannon 9 | . . 13 . Ballistic Gun 10 | . 28 4 14 Ballistic Cannon 1 | . . . 14 Naked Turns . | . . . . Heaviest Build 44 | 15 32 44 39 Greatest Support 40 | 20 40 40 30 Greatest Overweight (x) 14 | 1 . 14 3 Average Overweight (x) . | . . . . Largest Inventory Capacity 15 | 8 15 15 15 Average Capacity 9 | 7 12 9 5 Most Carried 15 | 8 10 15 14 Average Carried 7 | 4 8 7 5 Final Capacity 15 | 8 15 15 5 Final Carried 14 | 8 10 14 5 Class Distribution -------------------- 58% | Mutant 34% | Subdweller-Mutant 5% | Scavenger-Mutant Dominant Class ---------------- Mutant | -10/Materials Subdweller-Mutant | -10/Subcaves Mutant | -7/Recycling Resources | -11 -10 -10 -7 ----------- Run | Yrd Mat Sub Rec Matter Collected 1006 | 232 249 459 66 Remotely . | . . . . Salvage Created 1314 | 124 307 845 38 Parts 77 | 11 18 46 2 Haulers Intercepted 1 | . 1 . . Recyclers Shooed . | . . . . Parts Field Recycled . | . . . . Retrieved Matter . | . . . . Parts Self-Destructed 8 | . . 8 . Prevented . | . . . . Kills | -11 -10 -10 -7 ------- Run | Yrd Mat Sub Rec Combat Hostiles Destroyed 30 | . 8 21 1 Guns 11 | . 8 2 1 Cannons 14 | . . 14 . AOE 2 | . . 2 . Classes Destroyed 8 | 2 3 3 . Tunneler 2 | 2 . . . Hauler 1 | . 1 . . Recycler 1 | 1 . . . Turret 2 | . . 2 . Swarmer 7 | . 3 4 . Grunt 8 | . 5 2 1 Artisan 1 | . . 1 . Subdweller 15 | . . 15 . Best Kill Streak 4 | 3 3 4 1 Combat Bots Only 4 | . 3 4 1 Max Kills in Single Turn 2 | 2 1 2 1 Gunslinging . | . . . . Exploded 2 | . . 2 . Melee . | . . . . Uniques/NPCs Destroyed . | . . . . Combat | -11 -10 -10 -7 -------- Run | Yrd Mat Sub Rec Hostile Shots Fired 226 | . 35 185 6 Missed 89 | . 11 77 1 Damage Taken 1950 | . 290 1603 57 Core 257 | . 20 195 42 Absorbed by Shields . | . . . . Ignored by Resistances 54 | . . 54 . Core Remaining (%) 100 | 100 . . . Volleys Fired 140 | 4 32 101 3 Largest 2 | 2 2 2 2 Hottest 180 | 40 40 180 72 Shots Fired 241 | 8 64 162 7 Gun 136 | 8 64 60 4 Cannon 95 | . . 92 3 Launcher 2 | . . 2 . Special 8 | . . 8 . Kinetic 111 | 8 64 32 7 Thermal 128 | . . 128 . Explosive 2 | . . 2 . Electromagnetic . | . . . . Robot Hit Streak 11 | 6 8 11 6 Robot Miss Streak 10 | . 10 4 . Penetration Max . | . . . . Secondary Targets 1 | . 1 . . Max Gunslinging Chain 1 | . 1 . . Shots Hit Robots 108 | 6 31 66 5 Core Hits 50 | 4 17 26 3 Critical Kills 3 | . . 3 . Critical Parts Destroyed 1 | . . 1 . Critical Strikes 5 | . . 5 . Meltdown 3 | . . 3 . Destroy 2 | . . 2 . Melee Attacks . | . . . . Impact . | . . . . Slashing . | . . . . Piercing . | . . . . Sneak Attacks . | . . . . Combat Hostiles . | . . . . Follow-up Attacks . | . . . . Damage Inflicted 2297 | 89 396 1718 94 Guns 951 | 89 396 412 54 Cannons 1146 | . . 1106 40 Explosions 155 | . . 155 . Melee . | . . . . Ramming . | . . . . Kinetic 808 | 89 396 229 94 Thermal 1334 | . . 1334 . Explosive 155 | . . 155 . Electromagnetic . | . . . . Impact . | . . . . Slashing . | . . . . Piercing . | . . . . Highest Corruption 5 | . 2 5 5 Average Corruption 2 | . 2 2 5 Corruption Purged . | . . . . Corruption Blocked . | . . . . Effects 46 | . 8 33 5 Message Errors 16 | . 3 11 2 Matter Fused 6 | . 1 4 1 Heat Flow Errors 5 | . 1 4 . Energy Discharges 4 | . . 3 1 Parts Rejected 1 | . . 1 . Parts Fused 2 | . . 2 . Data Loss (minor) 6 | . 3 3 . Data Loss (major) 1 | . . 1 . Misfires 1 | . . . 1 Alerts 1 | . . 1 . Weapon Failures 3 | . . 3 . Overload Shots . | . . . . Overflow Damage 10 | . . 10 . Projectiles 10 | . . 10 . Explosions . | . . . . Melee . | . . . . Knockbacks . | . . . . Impact . | . . . . Kinetic . | . . . . Secondary . | . . . . Self-Inflicted Damage 24 | . . 24 . Shots 1 | . . 1 . Rammed . | . . . . Targets Rammed . | . . . . Kicked . | . . . . Crushed . | . . . . Highest Temperature 257 | . 161 257 60 Average Temperature 53 | . 36 56 30 Received Heat Transfer 510 | . 126 333 51 Siege Activations . | . . . . Robots Corrupted . | . . . . Combat Hostiles . | . . . . Parts Fried . | . . . . Impact Corruptions . | . . . . Robots Melted 3 | . . 3 . Combat Hostiles 3 | . . 3 . Parts Melted 14 | . . 14 . Heat Transferred 2025 | . . 2025 . Parts Sabotaged . | . . . . Parts Stolen . | . . . . Parts Stripped . | . . . . Power Chain Reactions . | . . . . Alert | -11 -10 -10 -7 ------- Run | Yrd Mat Sub Rec Peak Influence 733 | 15 192 . 733 Initial 700 | . 9 . 700 Average 196 | 7 60 . 710 Maximum Alert Level 3 | . . . 3 Low Security (%) 77 | 100 100 . . Level 1 . | . . . . Level 2 . | . . . . Level 3 22 | . . . 100 Level 4 . | . . . . Level 5 . | . . . . High Security . | . . . . Max Security . | . . . . Squads Dispatched 1 | . 1 . . Investigation 1 | . 1 . . Extermination . | . . . . Reinforcement . | . . . . Assault . | . . . . Garrison . | . . . . Intercept . | . . . . Searches Triggered . | . . . . Construction Impeded . | . . . . Haulers Reinforced . | . . . . Active Scanning Responses . | . . . . Cargo Convoy Interrupts . | . . . . Stealth | -11 -10 -10 -7 --------- Run | Yrd Mat Sub Rec Distress Signals 1 | . 1 . . Communications Jammed . | . . . . Distress Signals . | . . . . Times Spotted 94 | . 14 78 2 Peak Tracking Total 7 | . 3 7 2 Tactical Retreats 7 | . . 7 . Traps | -11 -10 -10 -7 ------- Run | Yrd Mat Sub Rec Traps Triggered 3 | . 2 1 . Indirectly . | . . . . Trap Hack Attempts . | . . . . Triggered . | . . . . Disarmed . | . . . . Reprogrammed . | . . . . Reused . | . . . . Traps Extracted . | . . . . Installed . | . . . . Triggered . | . . . . Machines | -11 -10 -10 -7 ---------- Run | Yrd Mat Sub Rec Machines Disabled 2 | . . 2 . Max in Single Turn 1 | . . 1 . Machines Repaired . | . . . . Machines Dismantled . | . . . . Machines Sabotaged . | . . . . Overloaded Fab Kills . | . . . . Hacking | -11 -10 -10 -7 --------- Run | Yrd Mat Sub Rec Machines Accessed 6 | . 2 1 3 Terminals 5 | . 2 . 3 Fabricators . | . . . . Repair Stations . | . . . . Recycling Units . | . . . . Scanalyzers . | . . . . Garrison Access . | . . . . Total Hacks 16 | . 9 3 4 Successful 9 | . 4 3 2 Failed 6 | . 4 . 2 Catastrophic 1 | . . . 1 Database Lockouts 1 | . 1 . . Manual 3 | . 3 . . Terminals 13 | . 9 . 4 Fabricators . | . . . . Repair Stations . | . . . . Recycling Units . | . . . . Scanalyzers . | . . . . Garrison Access . | . . . . Terminal Hacks 9 | . 4 3 2 Record 4 | . . 3 1 Robot Analysis 3 | . 3 . . Alert Level 1 | . . . 1 Locate Traps 1 | . 1 . . Fabricator Hacks . | . . . . Repair Station Hacks . | . . . . Recycling Unit Hacks . | . . . . Scanalyzer . | . . . . Garrison Access Hacks . | . . . . Unauthorized Hacks . | . . . . Terminals . | . . . . Fabricators . | . . . . Repair Stations . | . . . . Recycling Units . | . . . . Scanalyzers . | . . . . Garrison Access . | . . . . Data Cores Recovered . | . . . . Used . | . . . . Hacking Detections 3 | . 1 . 2 Full Trace Events . | . . . . Feedback Events . | . . . . Feedback Blocked . | . . . . Robot Schematics Acquired . | . . . . Robots Built . | . . . . Authchips . | . . . . Time . | . . . . Total Robot Build Rating . | . . . . Part Schematics Acquired . | . . . . Parts Built . | . . . . Authchips . | . . . . Time . | . . . . Total Part Build Rating . | . . . . Parts Repaired . | . . . . Time . | . . . . Parts Recycled . | . . . . Recycled Matter . | . . . . Retrieved Matter . | . . . . Retrieved Components . | . . . . Parts Scanalyzed . | . . . . Part Schematics Acquired . | . . . . Parts Damaged . | . . . . Bothacking | -11 -10 -10 -7 ------------ Run | Yrd Mat Sub Rec Used RIF Installer . | . . . . Robots Hacked . | . . . . Non-combat . | . . . . Combat . | . . . . Robot Hacks Applied . | . . . . Relay Couplers Released . | . . . . Fabnet Peak Effective % . | . . . . Robots Rewired . | . . . . Allies Hacked . | . . . . Hacks Repelled . | . . . . Allies | -11 -10 -10 -7 -------- Run | Yrd Mat Sub Rec Total Allies . | . . . . Largest Group . | . . . . Highest-Rated Group . | . . . . Highest-Rated Ally . | . . . . Total Orders . | . . . . Ally Attacks . | . . . . Total Damage . | . . . . Kills . | . . . . Allies Corrupted . | . . . . Allies Melted . | . . . . Intel | -11 -10 -10 -7 ------- Run | Yrd Mat Sub Rec Robot Analysis Total 3 | . 3 . . Derelict Logs Recovered 1 | . . 1 . Drone Launches . | . . . . Drone Recoveries . | . . . . Exploration | -11 -10 -10 -7 ------------- Run | Yrd Mat Sub Rec Turns Passed 3332 | 172 656 2268 236 Spaces Moved 1935 | 125 349 1271 190 Core 43 | 41 . 1 1 Treads 875 | . 192 683 . Legs 241 | 84 157 . . Wheels 776 | . . 587 189 Hover . | . . . . Flight . | . . . . Fastest Speed 50 | 50 120 120 95 Average Speed 139 | 98 142 148 95 Slowest Speed 750 | 120 160 750 200 Overloaded Moves . | . . . . Propulsion Burnouts . | . . . . Robots Hopped . | . . . . Cave-ins Triggered 1 | . . 1 . Exploration Rate (%) 44 | 6 63 63 44 Regions Visited 3 Branch Regions 2 Pre-discovered Areas 1 | . . 1 . Known Exits Taken . | . . . . Unknown Exits Taken 3 | 1 1 1 . Scrap Searched 4 | . . 4 . Spaces Dug 16 | . . 16 . Terrain Destroyed 41 | . . 41 . Melee . | . . . . Projectile 29 | . . 29 . AOE 12 | . . 12 . Terrain Rammed . | . . . . Walls Destroyed . | . . . . Machines Disabled . | . . . . Actions | -11 -10 -10 -7 --------- Run | Yrd Mat Sub Rec Total 2328 | 162 446 1480 240 Wait 116 | 19 52 19 26 Move 1931 | 124 348 1269 190 Hop . | . . . . Pick Up 39 | 8 4 24 3 Fast Attach 27 | 7 . 14 6 Attach 8 | . 1 7 . Detach 12 | . . 11 1 Swap 14 | . 5 7 2 Drop 37 | . 4 24 9 Fire 140 | 4 32 101 3 Melee . | . . . . Ram . | . . . . Kick . | . . . . Crush . | . . . . Escape Stasis 1 | . . 1 . Rewire . | . . . . Trap . | . . . . Miscellaneous 3 | . . 3 . Route ------- -11/Scrapyard -10/Materials (discovered 3 exits: [*Mat] / [*Min] / *Sub) -10/Subcaves (discovered 2 exits: [*Mat] / *Rec) -7/Recycling History --------- Turn | Location | Event 15 | -11/Scrapyard | Discovered new exit (range 15) 173 | -11/Scrapyard | Entered Materials 305 | -10/Materials | Build established: Mutant 357 | -10/Materials | Discovered new exit (range 8) 426 | -10/Materials | Discovered new exit (range 11) 624 | -10/Materials | Central database locked down 817 | -10/Materials | Discovered new exit (range 4) 829 | -10/Materials | Entered Subcaves 954 | -10/Subcaves | Shifting Twisted Machinery released Sub. Laser 961 | -10/Subcaves | Shifting Twisted Machinery released Battle Cannon 970 | -10/Subcaves | Ambushed by swarm of Subdwellers 1035 | -10/Subcaves | Lost 4 allies 1144 | -10/Subcaves | Build established: Subdweller-Mutant 1735 | -10/Subcaves | Discovered new exit (range 10) 2090 | -10/Subcaves | Discovered new exit (range 13) 2232 | -10/Subcaves | Visited Clippyterm 2235 | -10/Subcaves | Learned Factory fabricator intel 2385 | -10/Subcaves | Core integrity fell below 50% 2598 | -10/Subcaves | Learned location of Mines (-10) 2637 | -10/Subcaves | Build established: Mutant 2692 | -10/Subcaves | Core integrity fell below 20% 2937 | -10/Subcaves | Crushed by falling debris 2938 | -10/Subcaves | Ambushed by Subdweller buried in earth 3097 | -10/Subcaves | Entered Recycling 3106 | -7/Recycling | Found Scrap Engine 3333 | -7/Recycling | Destroyed by Y-54 Guardian with Gatling Laser Last Messages --------------- 03185_ Connecting with Recycling Unit... 03206_ Dropped Grenade Launcher. 03209_ Acquired Hvy. Missile Launcher. 03210_ Acquired 43 matter. 03213_ Dropped Battle Cannon. 03213_ Acquired Axe. 03216_ R-06 Scavenger collects Grenade Launcher. 03220_ Acquired 20 matter. 03221_ Dropped Sub. Power Source. 03221_ R-06 Scavenger collects Sub. Power Source. 03222_ Acquired Nuclear Core. 03262_ System corrupted: Energy discharge (-60). 03289_ G-47 Trooper springs to life. 03290_ Y-54 Guardian springs to life. 03308_ Critical hit (Burn: +37). 03308_ G-47 Trooper destroyed. 03310_ U-05 Engineer builds a Door. 03318_ Acquired 3 matter. 03320_ System corrupted: Matter fused (-10). Map ----- +----------------------------------------------------+ | # ??##### ##????????????????????????????? | | # ???????# #?????????????????????????????? | | " ????????# #?????????????????????????????? | | Y?????????# #?????????????????????????????? | | ??????????#####+####?????????????????????????????? | | ????????####### #????????????????????????????????? | | ????????# #????????????????????????????????? | | ????????# #????????????????????????????????? | | ???????## ##########???????????????????????? | | # +???????????????????????? | | # ############/##+## #???????????????????????? | | # ?????## #?????????????????????????? | | ? ???????# +?????????????????????????? | | ?????????## #?????????????????????????? | | ??????????# #?###+????????????????????? | | ??????????# #? ????????????????????? | | ??????????# +? ?????????????????????? | | ??????????# #? ?????????????????????? | | ??????????# #?# #?????????????????????? | | ??????????# #?# #?????????????????????? | | ??????????# ### ##????????????????????? | | ??????????# !## #????????????????????? | | ??????????# %+* #????????????????????? | | ??????????###### ######## #????????????????????? | | ???????????????##?????####Y#####?????????????????? | | ??????????????????????# !@%! r #?????????????????? | | ??????????????????????# Y r #?????????????????? | | ??????????????????????# s u ]#?????????????????? | | ??????????????????????# i % #?????????????????? | | ??????????????????????#! i #?????????????????? | | ??????????????????????# % t#?????????????????? | | ??????????????????????+ #?????????????????? | | ??????????????????????# p %#?????????????????? | | ??????????????????????# rpi ! #?????????????????? | | ??????????????????????##########?????????????????? | | ?????????????????????????????????????????????????? | | ?????????????????????????????????????????????????? | | ?????????????????????????????????????????????????? | | ?????????????????????????????????????????????????? | | | | | | | | | | | | | | | | | | | | | | | +----------------------------------------------------+ Best States ------------- Heat Dissipation 25 Energy Generation 19 Energy Capacity 315 Matter Stores 300 Matter Capacity 300 Sight Range 16 Terrain Scan Density 10 Armor Coverage 800 Resistance: KI 10 Evasion (%) 55 Recoil Reduction 2 Item Schematics ----------------- None Robot Schematics ------------------ None Fabricated ------------ Nothing Alien Tech Used ----------------- None Achievements -------------- None Challenges ------------ None Game ------ Seed QuantumBehemothInitializer Manual? 0 Play Time 00:36:53 Cumulative 25.8 hours Start 2024.04.11 @ 07:36:21 End 2024.04.15 @ 15:49:06 Sessions 2 Manual Loads 0 Difficulty Rogue Special Mode None Game No. 19 Rogue 19 Adventurer 0 Explorer 0 Win Type - Total 0 Types 0/0/0/0/0/0/0/0/0 Lore% 21 Gallery% 27 Achievement% 23 Wizard Run 0 Options --------- Layout 2 ASCII 0 Keyboard 1 Movement Numpad Keybinds 0 Fullscreen 1 Font 24/Smallcaps Map View 50x49 Zoom Use 0% Tactical HUD 1 Map Filters NONE Filters NONE Steam 1 RUN: 4d2d06fa-e2c7-45ca-80b6-14137bab3da6